[Event "*** SCC Grand Prix: Titled Tuesday Blitz"]
[Site "Chess.com"]
[Date "2020.07.07"]
[Round "2"]
[White "bratkoo"]
[Black "monalize"]
[Result "1/2-1/2"]
[WhiteElo "2446"]
[BlackElo "2250"]
[TimeControl "180+1"]
[EndTime "10:19:26 PDT"]
[Termination "Game drawn by repetition"]

1. e4 {[%clk 0:02:56.9]} 1... c5 {[%clk 0:02:59.3]} 2. Nf3 {[%clk 0:02:54.3]}
2... d6 {[%clk 0:02:59.1]} 3. d4 {[%clk 0:02:54.3]} 3... cxd4 {[%clk 0:02:59.5]}
4. Nxd4 {[%clk 0:02:55]} 4... Nf6 {[%clk 0:02:59.6]} 5. Nc3 {[%clk 0:02:55.4]}
5... a6 {[%clk 0:02:59.6]} 6. Be3 {[%clk 0:02:55.8]} 6... Ng4 {[%clk 0:02:58.4]}
7. Bg5 {[%clk 0:02:54.7]} 7... h6 {[%clk 0:02:58.3]} 8. Bh4 {[%clk 0:02:54.9]}
8... g5 {[%clk 0:02:58.3]} 9. Bg3 {[%clk 0:02:55.3]} 9... Bg7 {[%clk 0:02:58.6]}
10. Be2 {[%clk 0:02:55.8]} 10... Ne5 {[%clk 0:02:55.4]} 11. h4 {[%clk
0:02:55.8]} 11... gxh4 {[%clk 0:02:49.9]} 12. Rxh4 {[%clk 0:02:55]} 12... Nbc6
{[%clk 0:02:48.2]} 13. Nf5 {[%clk 0:02:43.7]} 13... Bxf5 {[%clk 0:02:41.6]} 14.
exf5 {[%clk 0:02:44.6]} 14... Qb6 {[%clk 0:02:05.4]} 15. Nd5 {[%clk 0:02:24.7]}
15... Qa5+ {[%clk 0:01:51.3]} 16. c3 {[%clk 0:02:00.6]} 16... e6 {[%clk
0:01:25.1]} 17. fxe6 {[%clk 0:01:57]} 17... fxe6 {[%clk 0:01:24.9]} 18. Bh5+
{[%clk 0:01:57.1]} 18... Kd7 {[%clk 0:01:24.4]} 19. Ne3 {[%clk 0:01:43.8]} 19...
Qb5 {[%clk 0:01:09]} 20. Nc4 {[%clk 0:01:02.7]} 20... Nxc4 {[%clk 0:00:58.1]}
21. Rxc4 {[%clk 0:01:00.7]} 21... Be5 {[%clk 0:00:57.7]} 22. Bxe5 {[%clk
0:00:50.1]} 22... Nxe5 {[%clk 0:00:52.4]} 23. Be2 {[%clk 0:00:46.5]} 23... Nxc4
{[%clk 0:00:49.8]} 24. b3 {[%clk 0:00:46.9]} 24... Qg5 {[%clk 0:00:49.5]} 25.
Bxc4 {[%clk 0:00:44.7]} 25... Qe5+ {[%clk 0:00:50.4]} 26. Kf1 {[%clk 0:00:44.7]}
26... Raf8 {[%clk 0:00:42.6]} 27. Qd3 {[%clk 0:00:44.3]} 27... Qf5 {[%clk
0:00:39.9]} 28. Qe3 {[%clk 0:00:40.6]} 28... b5 {[%clk 0:00:32.5]} 29. Be2
{[%clk 0:00:38.2]} 29... Qc5 {[%clk 0:00:28.1]} 30. Qxc5 {[%clk 0:00:32.3]}
30... dxc5 {[%clk 0:00:28]} 31. a4 {[%clk 0:00:32.9]} 31... b4 {[%clk
0:00:26.4]} 32. cxb4 {[%clk 0:00:32.8]} 32... cxb4 {[%clk 0:00:26.3]} 33. Bxa6
{[%clk 0:00:33]} 33... Ke7 {[%clk 0:00:23.9]} 34. Rc1 {[%clk 0:00:32.3]} 34...
Rd8 {[%clk 0:00:22.9]} 35. Rc4 {[%clk 0:00:31.1]} 35... Rd6 {[%clk 0:00:21.3]}
36. Bb5 {[%clk 0:00:30.5]} 36... Rf8 {[%clk 0:00:20]} 37. Rxb4 {[%clk
0:00:28.9]} 37... Rd2 {[%clk 0:00:18.9]} 38. f3 {[%clk 0:00:29.3]} 38... Rb2
{[%clk 0:00:18.1]} 39. Bc4 {[%clk 0:00:26.2]} 39... h5 {[%clk 0:00:17.3]} 40.
Rb6 {[%clk 0:00:26]} 40... Rf6 {[%clk 0:00:17]} 41. a5 {[%clk 0:00:26.4]} 41...
h4 {[%clk 0:00:17.2]} 42. a6 {[%clk 0:00:25.7]} 42... h3 {[%clk 0:00:17]} 43.
gxh3 {[%clk 0:00:22.8]} 43... Rxf3+ {[%clk 0:00:16.5]} 44. Ke1 {[%clk
0:00:23.3]} 44... Re3+ {[%clk 0:00:15.8]} 45. Kd1 {[%clk 0:00:23.8]} 45... Ra2
{[%clk 0:00:16.2]} 46. h4 {[%clk 0:00:18.3]} 46... e5 {[%clk 0:00:11.6]} 47. h5
{[%clk 0:00:18]} 47... Rh3 {[%clk 0:00:10.6]} 48. Rb7+ {[%clk 0:00:14.7]} 48...
Kd6 {[%clk 0:00:10.3]} 49. Rf7 {[%clk 0:00:14.1]} 49... Rh1+ {[%clk 0:00:09.3]}
50. Rf1 {[%clk 0:00:13.8]} 50... Rxh5 {[%clk 0:00:08.8]} 51. Kc1 {[%clk
0:00:13.5]} 51... Kc5 {[%clk 0:00:09]} 52. Rd1 {[%clk 0:00:13]} 52... Rhh2
{[%clk 0:00:08.1]} 53. Rd5+ {[%clk 0:00:12.6]} 53... Kb4 {[%clk 0:00:08.4]} 54.
Kb1 {[%clk 0:00:09.2]} 54... Rhg2 {[%clk 0:00:07.9]} 55. Rd1 {[%clk 0:00:05.6]}
55... Rgb2+ {[%clk 0:00:06.6]} 56. Kc1 {[%clk 0:00:06]} 56... Rc2+ {[%clk
0:00:06.7]} 57. Kb1 {[%clk 0:00:06.4]} 57... Rcb2+ {[%clk 0:00:06.2]} 58. Kc1
{[%clk 0:00:06.9]} 58... Rc2+ {[%clk 0:00:06.2]} 59. Kb1 {[%clk 0:00:07.3]}
59... Rcb2+ {[%clk 0:00:06.5]} 1/2-1/2

[Event "*** SCC Grand Prix: Titled Tuesday Blitz"]
[Site "Chess.com"]
[Date "2020.07.07"]
[Round "2"]
[White "Andreikka"]
[Black "suyu28"]
[Result "1-0"]
[WhiteElo "2921"]
[BlackElo "2573"]
[TimeControl "180+1"]
[EndTime "10:19:28 PDT"]
[Termination "Andreikka won on time"]

1. c4 {[%clk 0:02:55.7]} 1... e6 {[%clk 0:02:57.5]} 2. Nc3 {[%clk 0:02:54.8]}
2... d5 {[%clk 0:02:55.3]} 3. d4 {[%clk 0:02:55.1]} 3... c6 {[%clk 0:02:54.2]}
4. e3 {[%clk 0:02:53.9]} 4... Nf6 {[%clk 0:02:51.3]} 5. Bd3 {[%clk 0:02:52.9]}
5... Nbd7 {[%clk 0:02:49.9]} 6. Qc2 {[%clk 0:02:52.9]} 6... dxc4 {[%clk
0:02:48.5]} 7. Bxc4 {[%clk 0:02:53]} 7... b5 {[%clk 0:02:49.4]} 8. Bd3 {[%clk
0:02:50.9]} 8... Bb7 {[%clk 0:02:50.3]} 9. Nf3 {[%clk 0:02:49.8]} 9... a6 {[%clk
0:02:50.3]} 10. e4 {[%clk 0:02:48.2]} 10... c5 {[%clk 0:02:49.6]} 11. O-O {[%clk
0:02:34.4]} 11... cxd4 {[%clk 0:02:32.1]} 12. Nxd4 {[%clk 0:02:29.2]} 12... Rc8
{[%clk 0:02:30.4]} 13. Qe2 {[%clk 0:02:00.8]} 13... Nc5 {[%clk 0:02:19.3]} 14.
Rd1 {[%clk 0:02:00.5]} 14... Nxd3 {[%clk 0:02:18.6]} 15. Rxd3 {[%clk 0:02:00]}
15... Qc7 {[%clk 0:02:17.6]} 16. f3 {[%clk 0:01:53.8]} 16... Bd6 {[%clk
0:02:06.1]} 17. g3 {[%clk 0:01:45.8]} 17... O-O {[%clk 0:01:57.4]} 18. Be3
{[%clk 0:01:37.8]} 18... Qe7 {[%clk 0:01:49.5]} 19. Rad1 {[%clk 0:01:33.2]}
19... Rfd8 {[%clk 0:01:48.9]} 20. Nb3 {[%clk 0:01:33.6]} 20... Bb4 {[%clk
0:01:38.4]} 21. Rxd8+ {[%clk 0:01:05.6]} 21... Rxd8 {[%clk 0:01:38.4]} 22. Rxd8+
{[%clk 0:01:06.5]} 22... Qxd8 {[%clk 0:01:39.3]} 23. Nc5 {[%clk 0:01:07.2]}
23... Bc8 {[%clk 0:01:32.5]} 24. a3 {[%clk 0:00:57.5]} 24... Bxc5 {[%clk
0:01:10.4]} 25. Bxc5 {[%clk 0:00:56.6]} 25... Bb7 {[%clk 0:01:10]} 26. Kg2
{[%clk 0:00:54.3]} 26... h5 {[%clk 0:01:08.9]} 27. Nd1 {[%clk 0:00:44.3]} 27...
Qd7 {[%clk 0:01:00.9]} 28. Nf2 {[%clk 0:00:43.7]} 28... Qc6 {[%clk 0:00:55.6]}
29. Qe3 {[%clk 0:00:42]} 29... Qd7 {[%clk 0:00:53.3]} 30. h4 {[%clk 0:00:40.5]}
30... Bc6 {[%clk 0:00:50.8]} 31. Bd4 {[%clk 0:00:40.3]} 31... Ne8 {[%clk
0:00:45.4]} 32. Bc3 {[%clk 0:00:40.7]} 32... f6 {[%clk 0:00:43.8]} 33. Nd3
{[%clk 0:00:40.6]} 33... Qc8 {[%clk 0:00:19.4]} 34. e5 {[%clk 0:00:35.7]} 34...
Bd5 {[%clk 0:00:16.3]} 35. Nf4 {[%clk 0:00:33.7]} 35... Qc4 {[%clk 0:00:13.8]}
36. Nxh5 {[%clk 0:00:31.9]} 36... f5 {[%clk 0:00:08.2]} 37. Nf4 {[%clk
0:00:31.7]} 37... Bc6 {[%clk 0:00:08.4]} 38. Ba5 {[%clk 0:00:27]} 38... Qc2+
{[%clk 0:00:07]} 39. Qf2 {[%clk 0:00:18.7]} 39... Qb3 {[%clk 0:00:06.1]} 40. h5
{[%clk 0:00:17.7]} 40... Kf7 {[%clk 0:00:06.2]} 41. Qe2 {[%clk 0:00:16.5]} 41...
Ke7 {[%clk 0:00:05.7]} 42. Kf2 {[%clk 0:00:15.1]} 42... Kf7 {[%clk 0:00:05.7]}
43. Nh3 {[%clk 0:00:11.3]} 43... Ke7 {[%clk 0:00:05.2]} 44. Ng5 {[%clk
0:00:11.7]} 44... Bd5 {[%clk 0:00:04.4]} 45. Qd2 {[%clk 0:00:08.1]} 45... Kd7
{[%clk 0:00:04]} 46. Kg2 {[%clk 0:00:05]} 46... Nf6 {[%clk 0:00:03.4]} 47. exf6
{[%clk 0:00:04.6]} 47... gxf6 {[%clk 0:00:04.3]} 48. Ne4 {[%clk 0:00:04.5]}
48... Ke7 {[%clk 0:00:04.1]} 49. Bb4+ {[%clk 0:00:03.5]} 49... Kd8 {[%clk
0:00:02.3]} 50. Nc3 {[%clk 0:00:04]} 1-0

[Event "*** SCC Grand Prix: Titled Tuesday Blitz"]
[Site "Chess.com"]
[Date "2020.07.07"]
[Round "2"]
[White "BlackBoarder"]
[Black "alfiefischer77"]
[Result "1-0"]
[WhiteElo "2586"]
[BlackElo "2309"]
[TimeControl "180+1"]
[EndTime "10:19:28 PDT"]
[Termination "BlackBoarder won by resignation"]

1. e4 {[%clk 0:03:00]} 1... c5 {[%clk 0:03:00]} 2. Nf3 {[%clk 0:02:59.9]} 2...
e6 {[%clk 0:03:00.3]} 3. c3 {[%clk 0:03:00]} 3... a6 {[%clk 0:03:00.1]} 4. d4
{[%clk 0:02:58.9]} 4... d5 {[%clk 0:02:58.7]} 5. e5 {[%clk 0:02:49.2]} 5... Bd7
{[%clk 0:02:58.2]} 6. Bd3 {[%clk 0:02:43.5]} 6... cxd4 {[%clk 0:02:57.7]} 7.
cxd4 {[%clk 0:02:42.4]} 7... Bb5 {[%clk 0:02:57.8]} 8. Bxb5+ {[%clk 0:02:40.4]}
8... axb5 {[%clk 0:02:57.8]} 9. O-O {[%clk 0:02:40.3]} 9... b4 {[%clk 0:02:58]}
10. Nbd2 {[%clk 0:02:36.6]} 10... Ne7 {[%clk 0:02:56.5]} 11. Nb3 {[%clk
0:02:33.9]} 11... Nf5 {[%clk 0:02:55.7]} 12. Bg5 {[%clk 0:02:26.3]} 12... Be7
{[%clk 0:02:50.6]} 13. Bxe7 {[%clk 0:02:26.3]} 13... Qxe7 {[%clk 0:02:49.5]} 14.
Nc5 {[%clk 0:02:14.7]} 14... O-O {[%clk 0:02:41.1]} 15. Qd3 {[%clk 0:01:53.6]}
15... Nc6 {[%clk 0:02:38.5]} 16. Rfc1 {[%clk 0:01:50.7]} 16... Ra5 {[%clk
0:02:24.5]} 17. Nb3 {[%clk 0:01:45.6]} 17... Ra7 {[%clk 0:02:14.5]} 18. Qb5
{[%clk 0:01:43.6]} 18... Rfa8 {[%clk 0:02:05.6]} 19. Qb6 {[%clk 0:00:57.5]}
19... h5 {[%clk 0:01:41.9]} 20. Kf1 {[%clk 0:00:55.4]} 20... Rxa2 {[%clk
0:01:32.7]} 21. Rxa2 {[%clk 0:00:54.3]} 21... Rxa2 {[%clk 0:01:33.6]} 22. Rc2
{[%clk 0:00:51.7]} 22... Ra6 {[%clk 0:01:17.2]} 23. Qb5 {[%clk 0:00:45.4]} 23...
g5 {[%clk 0:01:08.7]} 24. Qc5 {[%clk 0:00:34.3]} 24... g4 {[%clk 0:00:54.5]} 25.
Qxe7 {[%clk 0:00:32.4]} 25... Nfxe7 {[%clk 0:00:51.8]} 26. Nh4 {[%clk
0:00:26.5]} 26... Ra8 {[%clk 0:00:28.7]} 27. Ke2 {[%clk 0:00:24.6]} 27... Rc8
{[%clk 0:00:28.1]} 28. Kd3 {[%clk 0:00:24.7]} 28... b5 {[%clk 0:00:22.1]} 29. g3
{[%clk 0:00:21.2]} 29... Kf8 {[%clk 0:00:20.9]} 30. Rc5 {[%clk 0:00:18.4]} 30...
Rb8 {[%clk 0:00:18.8]} 31. Rc1 {[%clk 0:00:15.4]} 31... Rc8 {[%clk 0:00:17.7]}
32. Ra1 {[%clk 0:00:15.5]} 32... Rc7 {[%clk 0:00:14.8]} 33. Ra8+ {[%clk
0:00:14.8]} 33... Kg7 {[%clk 0:00:14.6]} 34. Ra6 {[%clk 0:00:14.9]} 34... Rb7
{[%clk 0:00:12.7]} 35. Nc5 {[%clk 0:00:14.2]} 35... Rb8 {[%clk 0:00:11.8]} 36.
Nd7 {[%clk 0:00:11.5]} 36... Rb7 {[%clk 0:00:11.2]} 37. Nf6 {[%clk 0:00:11.3]}
37... Ra7 {[%clk 0:00:10.6]} 38. Rxa7 {[%clk 0:00:10]} 38... Nxa7 {[%clk
0:00:11.5]} 39. Nxh5+ {[%clk 0:00:10.4]} 39... Kh6 {[%clk 0:00:10.8]} 40. Nf6
{[%clk 0:00:10.3]} 40... Nac6 {[%clk 0:00:09.4]} 41. Ne8 {[%clk 0:00:09.6]}
41... Nf5 {[%clk 0:00:04.8]} 42. Nxf5+ {[%clk 0:00:09.3]} 42... exf5 {[%clk
0:00:05.7]} 43. Nd6 {[%clk 0:00:09.9]} 43... Kg5 {[%clk 0:00:05.6]} 44. Nxf7+
{[%clk 0:00:09.6]} 44... Kg6 {[%clk 0:00:04.7]} 45. Nd6 {[%clk 0:00:10]} 45...
Kg5 {[%clk 0:00:04]} 46. Nxb5 {[%clk 0:00:10.2]} 46... f4 {[%clk 0:00:04.4]} 47.
Nc7 {[%clk 0:00:07.3]} 47... Kf5 {[%clk 0:00:03.8]} 48. Nxd5 {[%clk 0:00:07.1]}
48... fxg3 {[%clk 0:00:03.4]} 49. hxg3 {[%clk 0:00:07.1]} 49... Na5 {[%clk
0:00:03.6]} 50. Ne3+ {[%clk 0:00:07.4]} 50... Kg5 {[%clk 0:00:03.5]} 51. d5
{[%clk 0:00:07.2]} 51... Nb7 {[%clk 0:00:02.6]} 52. Kc4 {[%clk 0:00:06.8]} 52...
Na5+ {[%clk 0:00:02.7]} 53. Kxb4 {[%clk 0:00:06.7]} 53... Nb7 {[%clk 0:00:03.6]}
54. Kb5 {[%clk 0:00:07]} 54... Nd8 {[%clk 0:00:04.2]} 55. Kb6 {[%clk 0:00:06.8]}
55... Kg6 {[%clk 0:00:03.8]} 56. Kc7 {[%clk 0:00:06.9]} 56... Nf7 {[%clk
0:00:04.6]} 57. e6 {[%clk 0:00:07.4]} 57... Ne5 {[%clk 0:00:04.6]} 58. d6 {[%clk
0:00:07.3]} 58... Kf6 {[%clk 0:00:04.6]} 59. d7 {[%clk 0:00:07.2]} 1-0

[Event "*** SCC Grand Prix: Titled Tuesday Blitz"]
[Site "Chess.com"]
[Date "2020.07.07"]
[Round "2"]
[White "bascheyaro"]
[Black "SARGISMV"]
[Result "1-0"]
[WhiteElo "2695"]
[BlackElo "2479"]
[TimeControl "180+1"]
[EndTime "10:19:31 PDT"]
[Termination "bascheyaro won by resignation"]

1. d4 {[%clk 0:03:00.9]} 1... Nf6 {[%clk 0:02:59.6]} 2. Nc3 {[%clk 0:03:01]}
2... d5 {[%clk 0:02:55.9]} 3. Bf4 {[%clk 0:03:01]} 3... g6 {[%clk 0:02:55.5]} 4.
e3 {[%clk 0:03:00.5]} 4... Bg7 {[%clk 0:02:55.5]} 5. Nb5 {[%clk 0:03:00.4]} 5...
Na6 {[%clk 0:02:55.1]} 6. Nf3 {[%clk 0:03:00.5]} 6... c6 {[%clk 0:02:54.5]} 7.
Nc3 {[%clk 0:03:00.8]} 7... Nc7 {[%clk 0:02:53.4]} 8. Ne5 {[%clk 0:03:00.2]}
8... O-O {[%clk 0:02:52.8]} 9. Be2 {[%clk 0:02:59.5]} 9... Nd7 {[%clk
0:02:50.1]} 10. Nd3 {[%clk 0:02:58.7]} 10... Re8 {[%clk 0:02:44.3]} 11. h4
{[%clk 0:02:56.4]} 11... h6 {[%clk 0:02:41]} 12. Bg4 {[%clk 0:02:20.1]} 12...
Nf6 {[%clk 0:02:34.8]} 13. Bf3 {[%clk 0:02:18.1]} 13... Bf5 {[%clk 0:02:31.2]}
14. g4 {[%clk 0:02:11.7]} 14... Be4 {[%clk 0:02:29.6]} 15. g5 {[%clk 0:02:09.8]}
15... Bxf3 {[%clk 0:02:27.8]} 16. Qxf3 {[%clk 0:02:10.3]} 16... hxg5 {[%clk
0:02:26.5]} 17. hxg5 {[%clk 0:02:10.5]} 17... Nh5 {[%clk 0:02:17.2]} 18. O-O-O
{[%clk 0:02:10]} 18... Nxf4 {[%clk 0:02:03.9]} 19. Nxf4 {[%clk 0:02:09.7]} 19...
Qd6 {[%clk 0:01:55.1]} 20. Rh4 {[%clk 0:01:58.2]} 20... Ne6 {[%clk 0:01:53.6]}
21. Nxe6 {[%clk 0:01:53.3]} 21... Qxe6 {[%clk 0:01:54.5]} 22. Rdh1 {[%clk
0:01:52.9]} 22... f5 {[%clk 0:01:43.1]} 23. gxf6 {[%clk 0:01:52.3]} 23... exf6
{[%clk 0:01:40]} 24. Qg2 {[%clk 0:01:52.2]} 24... Kf7 {[%clk 0:01:35.9]} 25. Ne2
{[%clk 0:01:51.1]} 25... Rh8 {[%clk 0:01:29.3]} 26. b3 {[%clk 0:01:04.6]} 26...
Rxh4 {[%clk 0:01:23.3]} 27. Rxh4 {[%clk 0:01:05.5]} 27... Rh8 {[%clk 0:01:20.8]}
28. Rxh8 {[%clk 0:01:04.7]} 28... Bxh8 {[%clk 0:01:21.7]} 29. Qh2 {[%clk
0:01:05.1]} 29... Bg7 {[%clk 0:01:19.2]} 30. Qc7+ {[%clk 0:01:04.9]} 30... Qe7
{[%clk 0:01:18.8]} 31. Qc8 {[%clk 0:01:05]} 31... Bh6 {[%clk 0:01:05.2]} 32. Kb2
{[%clk 0:01:04.2]} 32... Kg7 {[%clk 0:00:51.6]} 33. Nc1 {[%clk 0:01:00.3]} 33...
f5 {[%clk 0:00:32.3]} 34. Nd3 {[%clk 0:00:59.8]} 34... f4 {[%clk 0:00:32.6]} 35.
exf4 {[%clk 0:00:57]} 35... Kh7 {[%clk 0:00:24.8]} 36. f5 {[%clk 0:00:56.4]}
36... Bg7 {[%clk 0:00:22.2]} 37. fxg6+ {[%clk 0:00:56]} 37... Kxg6 {[%clk
0:00:23.1]} 38. Nf4+ {[%clk 0:00:46.9]} 38... Kh7 {[%clk 0:00:19.2]} 39. Qf5+
{[%clk 0:00:45.7]} 39... Kg8 {[%clk 0:00:18.7]} 40. Ne6 {[%clk 0:00:46.1]} 40...
Qf6 {[%clk 0:00:17.8]} 41. Qg4 {[%clk 0:00:42.4]} 41... Kf7 {[%clk 0:00:16]} 42.
Qxg7+ {[%clk 0:00:42.2]} 42... Qxg7 {[%clk 0:00:16.9]} 43. Nxg7 {[%clk 0:00:43]}
43... Kxg7 {[%clk 0:00:17.4]} 44. Kc3 {[%clk 0:00:43.5]} 44... Kf6 {[%clk
0:00:18.3]} 45. Kd3 {[%clk 0:00:44]} 45... Kf5 {[%clk 0:00:18.8]} 46. Ke3 {[%clk
0:00:44.3]} 46... Kg4 {[%clk 0:00:19.4]} 47. c4 {[%clk 0:00:44]} 47... b5 {[%clk
0:00:18.2]} 48. cxd5 {[%clk 0:00:42.9]} 48... cxd5 {[%clk 0:00:19.1]} 49. b4
{[%clk 0:00:42.7]} 49... a6 {[%clk 0:00:18.1]} 50. a3 {[%clk 0:00:43]} 50... Kg5
{[%clk 0:00:17.1]} 51. f3 {[%clk 0:00:39]} 51... Kf5 {[%clk 0:00:16.2]} 52. Ke2
{[%clk 0:00:39.3]} 52... Kg5 {[%clk 0:00:16]} 53. Kf1 {[%clk 0:00:38.9]} 53...
Kf5 {[%clk 0:00:13.8]} 54. Kg2 {[%clk 0:00:38.6]} 54... Kg5 {[%clk 0:00:13.9]}
55. Kg3 {[%clk 0:00:38.9]} 55... Kf5 {[%clk 0:00:14.5]} 56. Kg2 {[%clk 0:00:25]}
56... Kg5 {[%clk 0:00:14.5]} 57. Kg1 {[%clk 0:00:25.4]} 57... Kf5 {[%clk
0:00:13.7]} 58. Kf1 {[%clk 0:00:25.8]} 58... Kg5 {[%clk 0:00:13.9]} 59. Kg2
{[%clk 0:00:26]} 59... Kf5 {[%clk 0:00:12.6]} 60. Kg3 {[%clk 0:00:26.4]} 60...
Kg5 {[%clk 0:00:12.9]} 61. f4+ {[%clk 0:00:26.6]} 61... Kf6 {[%clk 0:00:11.6]}
62. Kg4 {[%clk 0:00:26.7]} 62... Kg6 {[%clk 0:00:11.7]} 63. f5+ {[%clk
0:00:27.6]} 63... Kf6 {[%clk 0:00:12.1]} 64. Kf4 {[%clk 0:00:28.1]} 64... Kf7
{[%clk 0:00:12.4]} 65. Ke5 {[%clk 0:00:29]} 65... Ke7 {[%clk 0:00:12.6]} 66.
Kxd5 {[%clk 0:00:29.4]} 66... Kf6 {[%clk 0:00:13.5]} 67. Kc6 {[%clk 0:00:29.9]}
67... Kxf5 {[%clk 0:00:14.4]} 68. d5 {[%clk 0:00:30.4]} 68... Ke4 {[%clk
0:00:14.8]} 69. d6 {[%clk 0:00:30.9]} 69... a5 {[%clk 0:00:15.7]} 70. Kxb5
{[%clk 0:00:30.6]} 70... axb4 {[%clk 0:00:16.6]} 71. axb4 {[%clk 0:00:30.8]}
71... Ke5 {[%clk 0:00:16.8]} 72. d7 {[%clk 0:00:31.7]} 72... Ke6 {[%clk
0:00:17.6]} 73. d8=Q {[%clk 0:00:32.3]} 1-0

[Event "*** SCC Grand Prix: Titled Tuesday Blitz"]
[Site "Chess.com"]
[Date "2020.07.07"]
[Round "2"]
[White "PetrolulSah"]
[Black "davidkalashian"]
[Result "0-1"]
[WhiteElo "2170"]
[BlackElo "2624"]
[TimeControl "180+1"]
[EndTime "10:19:34 PDT"]
[Termination "davidkalashian won on time"]

1. d4 {[%clk 0:03:00.9]} 1... Nf6 {[%clk 0:02:59.2]} 2. c4 {[%clk 0:03:00.4]}
2... g6 {[%clk 0:02:57.5]} 3. Nc3 {[%clk 0:03:00.2]} 3... Bg7 {[%clk 0:02:57.9]}
4. e4 {[%clk 0:02:59.7]} 4... d6 {[%clk 0:02:58.3]} 5. Be2 {[%clk 0:02:59.8]}
5... O-O {[%clk 0:02:57.4]} 6. Be3 {[%clk 0:02:59.9]} 6... e5 {[%clk 0:02:56.4]}
7. d5 {[%clk 0:02:59.1]} 7... Ne8 {[%clk 0:02:51]} 8. g4 {[%clk 0:02:56.6]} 8...
f5 {[%clk 0:02:37.8]} 9. gxf5 {[%clk 0:02:51.1]} 9... gxf5 {[%clk 0:02:38.7]}
10. exf5 {[%clk 0:02:34.7]} 10... Bxf5 {[%clk 0:02:38.3]} 11. Qd2 {[%clk
0:02:31.8]} 11... Nd7 {[%clk 0:02:35.6]} 12. O-O-O {[%clk 0:02:30.5]} 12... e4
{[%clk 0:02:20.7]} 13. h4 {[%clk 0:02:21.1]} 13... Ne5 {[%clk 0:02:18.6]} 14.
Nh3 {[%clk 0:02:18.5]} 14... b5 {[%clk 0:01:58.6]} 15. cxb5 {[%clk 0:02:12.7]}
15... a6 {[%clk 0:01:56.9]} 16. bxa6 {[%clk 0:02:12.7]} 16... Nd3+ {[%clk
0:01:51.8]} 17. Kb1 {[%clk 0:01:57.9]} 17... Rxa6 {[%clk 0:01:34.1]} 18. Rdg1
{[%clk 0:01:54.6]} 18... Kh8 {[%clk 0:01:30.6]} 19. Ng5 {[%clk 0:01:31.5]} 19...
Ra8 {[%clk 0:01:04.5]} 20. Bxd3 {[%clk 0:01:28.5]} 20... exd3 {[%clk 0:01:03.8]}
21. Ne6 {[%clk 0:01:28.6]} 21... Bxe6 {[%clk 0:00:55.5]} 22. dxe6 {[%clk
0:01:29.5]} 22... Qf6 {[%clk 0:00:49.4]} 23. Qxd3 {[%clk 0:01:26]} 23... Qxe6
{[%clk 0:00:48.5]} 24. Bd4 {[%clk 0:01:18.8]} 24... Rf4 {[%clk 0:00:25]} 25.
Rxg7 {[%clk 0:01:02.6]} 25... Nxg7 {[%clk 0:00:25.9]} 26. Rg1 {[%clk 0:01:01.1]}
26... Rg4 {[%clk 0:00:21.5]} 27. Rxg4 {[%clk 0:00:53.6]} 27... Qxg4 {[%clk
0:00:22.4]} 28. Nd5 {[%clk 0:00:49.2]} 28... c5 {[%clk 0:00:17.8]} 29. Be3
{[%clk 0:00:28.6]} 29... Qf5 {[%clk 0:00:15.4]} 30. Qxf5 {[%clk 0:00:21.9]}
30... Nxf5 {[%clk 0:00:16.3]} 31. Bf4 {[%clk 0:00:22]} 31... Rd8 {[%clk
0:00:13.7]} 32. h5 {[%clk 0:00:21]} 32... Kg7 {[%clk 0:00:14.1]} 33. a4 {[%clk
0:00:17.6]} 33... Kf7 {[%clk 0:00:14.4]} 34. a5 {[%clk 0:00:17.3]} 34... Ke6
{[%clk 0:00:14.8]} 35. Nc7+ {[%clk 0:00:15.7]} 35... Kd7 {[%clk 0:00:14.7]} 36.
Nb5 {[%clk 0:00:15.8]} 36... Kc6 {[%clk 0:00:14]} 37. Nc3 {[%clk 0:00:15.6]}
37... Ra8 {[%clk 0:00:13.3]} 38. Ne4 {[%clk 0:00:12.7]} 38... Rxa5 {[%clk
0:00:13.1]} 39. Nf6 {[%clk 0:00:12.4]} 39... Ra7 {[%clk 0:00:12.5]} 40. h6
{[%clk 0:00:11.4]} 40... Rf7 {[%clk 0:00:12.8]} 41. Ne4 {[%clk 0:00:09.6]} 41...
Ne7 {[%clk 0:00:12]} 42. Be3 {[%clk 0:00:09.2]} 42... Nd5 {[%clk 0:00:11.8]} 43.
Ng5 {[%clk 0:00:08.6]} 43... Re7 {[%clk 0:00:11.7]} 44. Bd2 {[%clk 0:00:08.2]}
44... Nf6 {[%clk 0:00:12]} 45. Be3 {[%clk 0:00:04.3]} 45... Ne4 {[%clk
0:00:11.5]} 46. Kc2 {[%clk 0:00:03.7]} 46... Nxg5 {[%clk 0:00:11]} 47. Bxg5
{[%clk 0:00:03.9]} 47... Rf7 {[%clk 0:00:11.5]} 48. Be3 {[%clk 0:00:04]} 48...
d5 {[%clk 0:00:12]} 49. b3 {[%clk 0:00:03.9]} 49... d4 {[%clk 0:00:12.2]} 50.
Bg5 {[%clk 0:00:03.2]} 50... Rxf2+ {[%clk 0:00:12]} 51. Kd3 {[%clk 0:00:03.8]}
51... Rf3+ {[%clk 0:00:12.2]} 52. Kc2 {[%clk 0:00:04.1]} 52... Kd5 {[%clk
0:00:11.6]} 53. Bd2 {[%clk 0:00:03.6]} 53... Rf2 {[%clk 0:00:11.4]} 54. Kd3
{[%clk 0:00:03.3]} 54... Rf3+ {[%clk 0:00:11.3]} 55. Kc2 {[%clk 0:00:02.6]}
55... c4 {[%clk 0:00:11.8]} 56. bxc4+ {[%clk 0:00:02.2]} 56... Kxc4 {[%clk
0:00:12.7]} 57. Bc1 {[%clk 0:00:02.1]} 57... Rf2+ {[%clk 0:00:12.7]} 58. Kd1
{[%clk 0:00:01.6]} 58... Kc3 {[%clk 0:00:13]} 59. Bf4 {[%clk 0:00:01.4]} 59...
d3 {[%clk 0:00:12.5]} 0-1